fUSD/lending_fUSD_20240412
["ID","MTS","AMOUNT","RATE_DAILY","PERIOD"]
[322353594,1712958672441,-500.0,0.00049197,30]
[322353595,1712958672452,-500.0,0.00049197,30]
[322353596,1712958672462,-500.0,0.00049197,30]
[322353597,1712958672473,-1000.0,0.000492,7]
[322353598,1712958672483,-241.86666667,0.00049205,120]
[322353599,1712958672494,-150.81351587,0.00049237,30]
[322353600,1712958672504,-167.041306,0.00049248,48]
[322353601,1712958672515,-156.69386508,0.00049268,3]
[322353602,1712958672525,-200.0,0.0004928,25]
[322353603,1712958672535,-1000.0,0.0004928,50]
[322353604,1712958672545,-500.0,0.0004928,30]
[322353605,1712958672555,-500.0,0.00049315,120]
[322353606,1712958672565,-663.41,0.00049315,120]
[322353607,1712958672576,-500.0,0.00049315,120]
[322353608,1712958672586,-314.19036787,0.00049315,120]
[322353609,1712958672597,-545.67,0.00049315,120]
[322353610,1712958672607,-500.0,0.00049315,120]
[322353611,1712958672616,-500.0,0.00049315,120]
[322353612,1712958672628,-500.0,0.00049315,120]
[322353613,1712958672638,-151.0,0.00049315,14]
[322353614,1712958672648,-151.0,0.00049315,14]
[322353615,1712958672658,-151.0,0.00049315,14]
[322353616,1712958672668,-500.0,0.00049315,120]
[322353617,1712958672678,-151.0,0.00049315,14]
[322353618,1712958672688,-151.0,0.00049315,14]
[322353619,1712958672698,-538.33,0.00049315,120]
[322353620,1712958672709,-272.869436,0.00049315,14]
[322353621,1712958672720,-500.0,0.00049315,120]
[322353622,1712958672730,-3000.0,0.00049315,120]
[322353623,1712958672739,-151.0,0.00049315,14]
[322353624,1712958672749,-188.985821,0.00049315,14]
[322353625,1712958672759,-188.985821,0.00049315,14]
[322353626,1712958672769,-151.0,0.00049315,14]
[322353627,1712958672778,-538.15,0.00049315,120]
[322353628,1712958672788,-151.0,0.00049315,14]
[322353629,1712958672798,-151.0,0.00049315,14]
[322353630,1712958672808,-500.0,0.00049315,120]
[322353631,1712958672818,-151.0,0.00049315,14]
[322353632,1712958672828,-500.0,0.00049315,120]
[322353633,1712958672839,-576.55,0.00049315,120]
[322353634,1712958672849,-168.269111,0.00049315,14]
[322353635,1712958672861,-168.269111,0.00049315,14]
[322353636,1712958672872,-500.0,0.00049315,120]
[322353637,1712958672882,-933.0,0.00049315,120]
[322353638,1712958672893,-2019.61,0.00049315,120]
[322353639,1712958672904,-690.76,0.00049315,120]
[322353640,1712958672915,-500.0,0.00049315,120]
[322353641,1712958672925,-493.497385,0.00049315,14]
[322353642,1712958672937,-500.0,0.00049315,120]
[322353643,1712958672948,-493.497385,0.00049315,14]
[322353644,1712958672960,-564.75,0.00049315,120]
[322353645,1712958672971,-500.0,0.00049315,120]
[322353646,1712958672982,-539.86,0.00049315,120]
[322353647,1712958672992,-661.77,0.00049315,120]
[322353648,1712958673003,-500.0,0.00049315,120]
[322353649,1712958673013,-950.68,0.00049315,120]
[322353650,1712958673023,-2117.29,0.00049315,120]
[322353651,1712958673036,-151.0,0.00049315,14]
[322353652,1712958673046,-500.0,0.00049315,120]
[322353653,1712958673056,-151.0,0.00049315,14]
[322353654,1712958673067,-151.0,0.00049315,14]
[322353655,1712958673080,-1018.48,0.00049315,120]
[322353656,1712958673091,-500.0,0.00049315,2]
[322353657,1712958673102,-151.0,0.00049315,14]
[322353658,1712958673112,-500.0,0.00049315,120]
[322353659,1712958673122,-679.68,0.00049315,120]
[322353660,1712958673133,-843.3,0.00049315,120]
[322353661,1712958673144,-4584.66,0.00049315,120]
[322353662,1712958673155,-964.63,0.00049315,120]
[322353663,1712958673167,-500.0,0.00049315,120]
[322353664,1712958673177,-1471.09,0.00049315,120]
[322353665,1712958673188,-567.23,0.00049315,120]
[322353666,1712958673199,-500.0,0.00049315,120]
[322353667,1712958673209,-251.53269318,0.00049315,120]
[322353668,1712958673220,-500.0,0.00049315,120]
[322353669,1712958673230,-500.0,0.00049315,120]
[322353670,1712958673242,-500.0,0.00049315,120]
[322353671,1712958673253,-504.77,0.00049315,120]
[322353672,1712958673264,-2161.08,0.00049315,120]
[322353673,1712958673275,-1034.34,0.00049315,21]
[322353674,1712958673286,-657.185597,0.00049315,14]
[322353675,1712958673297,-500.0,0.00049315,120]
[322353676,1712958673307,-657.185597,0.00049315,14]
[322353677,1712958673317,-1543.137664,0.00049315,14]
[322353678,1712958673328,-151.0,0.00049315,14]
[322353679,1712958673338,-500.0,0.00049315,120]
[322353680,1712958673349,-564.36,0.00049315,120]
[322353681,1712958673360,-1543.137664,0.00049315,14]
[322353682,1712958673370,-500.0,0.00049315,120]
[322353683,1712958673381,-151.0,0.00049315,14]
[322353684,1712958673391,-500.0,0.00049315,120]
[322353685,1712958673401,-848.58,0.00049315,120]
[322353686,1712958673411,-500.0,0.00049315,120]
[322353687,1712958673422,-175.06988533,0.00049315,120]
[322353688,1712958673433,-649.268373,0.00049315,14]
[322353689,1712958673444,-1673.04,0.00049315,120]
[322353690,1712958673454,-2316.35,0.00049315,120]
[322353691,1712958673465,-649.268373,0.00049315,14]
[322353692,1712958673476,-500.0,0.00049315,120]
[322353693,1712958673486,-500.0,0.00049315,120]
[322353694,1712958673496,-500.0,0.00049315,120]
[322353695,1712958673507,-722.55,0.00049315,120]
[322353696,1712958673517,-754.19,0.00049315,120]
[322353697,1712958673530,-500.0,0.00049315,120]
[322353698,1712958673543,-215.428086,0.00049315,14]
[322353699,1712958673558,-677.12,0.00049315,120]
[322353700,1712958673569,-215.428086,0.00049315,14]
[322353701,1712958673580,-1978.67,0.00049315,120]
[322353702,1712958673592,-719.28,0.00049315,120]
[322353703,1712958673604,-500.0,0.00049315,120]
[322353704,1712958673617,-500.0,0.00049315,120]
[322353705,1712958673809,-500.0,0.00049315,120]
[322353706,1712958673820,-533.63,0.00049315,120]
[322353707,1712958673830,-500.0,0.00049315,120]
[322353708,1712958673840,-852.78,0.00049315,120]
[322353709,1712958673850,-151.0,0.00049315,14]
[322353710,1712958673860,-650.62,0.00049315,120]
[322353711,1712958673870,-663.97,0.00049315,120]
[322353712,1712958673880,-1170.71,0.00049315,120]
[322353713,1712958673890,-500.0,0.00049315,120]
[322353714,1712958673900,-151.0,0.00049315,14]
[322353715,1712958673910,-913.83,0.00049315,120]
[322353716,1712958673921,-760.9,0.00049315,120]
[322353717,1712958673931,-975.42,0.00049315,120]
[322353718,1712958673941,-500.0,0.00049315,120]
[322353719,1712958673951,-151.0,0.00049315,14]
[322353720,1712958673960,-1247.05,0.00049315,120]
[322353721,1712958673970,-151.0,0.00049315,7]
[322353722,1712958673980,-737.88,0.00049315,120]
[322353723,1712958673990,-500.0,0.00049315,120]
[322353724,1712958674000,-3574.09,0.00049315,120]
[322353725,1712958674011,-151.0,0.00049315,14]
[322353726,1712958674021,-746.31,0.00049315,120]
[322353727,1712958674033,-1154.88,0.00049315,120]
[322353728,1712958674056,-1303.28,0.00049315,120]
[322353729,1712958674069,-500.0,0.00049315,120]
[322353730,1712958674085,-510.75,0.00049315,120]
[322353731,1712958674102,-1868.15,0.00049315,120]
[322353732,1712958674118,-500.0,0.00049315,120]
[322353733,1712958674129,-761.6,0.00049315,120]
[322353734,1712958674139,-500.0,0.00049315,120]
[322353735,1712958674149,-757.87,0.00049315,120]
[322353736,1712958674160,-604.93,0.00049315,120]
[322353737,1712958674172,-590.53,0.00049315,120]
[322353738,1712958674195,-151.0,0.00049315,14]
[322353739,1712958674206,-151.0,0.00049315,14]
[322353740,1712958674216,-151.0,0.00049315,14]
[322353741,1712958674226,-1480.64,0.00049315,120]
[322353742,1712958674237,-500.0,0.00049315,120]
[322353743,1712958674247,-504.96,0.00049315,120]
[322353744,1712958674258,-500.0,0.00049315,120]
[322353745,1712958674268,-151.0,0.00049315,14]
[322353746,1712958674277,-344.0,0.00049322,30]
[322353747,1712958674288,-151.78703878,0.00049332,30]
[322353748,1712958674298,-151.0,0.00049342,120]
[322353749,1712958674309,-1000.0,0.000494,7]
[322353750,1712958674319,-185.55825352,0.00049421,45]
[322353751,1712958674329,-3000.0,0.00049452,120]
[322353752,1712958674339,-4125.59518556,0.00049456,2]
[322353753,1712958674349,-3326.46212683,0.00049456,2]
[322353754,1712958674361,-1100.0,0.00049471,90]
[322353755,1712958674370,-500.0,0.00049471,90]
[322353756,1712958674380,-1500.0,0.00049491,7]
[322353757,1712958674390,-150.0,0.00049498,7]
[322353758,1712958674400,-463.89,0.000495,6]
[322353759,1712958674411,-463.89,0.000495,6]
[322353760,1712958674422,-463.89,0.000495,6]
[322353761,1712958674432,-463.89,0.000495,6]
[322353762,1712958674442,-463.89,0.000495,6]
[322353763,1712958674454,-463.89,0.000495,6]
[322353764,1712958674464,-463.89,0.000495,6]
[322353765,1712958674474,-463.89,0.000495,6]
[322353766,1712958674484,-463.89,0.000495,6]
[322353767,1712958674494,-463.89,0.000495,6]
[322353768,1712958674503,-463.89,0.000495,6]
[322353769,1712958674513,-463.89,0.000495,6]
[322353770,1712958674523,-463.89,0.000495,6]
[322353771,1712958674533,-463.89,0.000495,6]
[322353772,1712958674543,-463.89,0.000495,6]
[322353773,1712958674553,-463.89,0.000495,6]
[322353774,1712958674562,-463.89,0.000495,6]
[322353775,1712958674572,-463.89,0.000495,6]
[322353776,1712958674582,-463.89,0.000495,6]
[322353777,1712958674592,-463.89,0.000495,6]
[322353778,1712958674601,-150.0,0.000495,10]
[322353779,1712958674611,-152.85,0.000495,6]
[322353780,1712958674621,-152.85,0.000495,6]
[322353781,1712958674631,-152.85,0.000495,6]
[322353782,1712958674640,-152.85,0.000495,6]
[322353783,1712958674650,-2044.78147375,0.00049537,26]
[322353784,1712958674660,-154.02509839,0.00049542,30]
[322353785,1712958674670,-169.91013985,0.00049562,30]
[322353786,1712958674680,-150.81351606,0.00049565,30]
[322353787,1712958674699,-150.0,0.00049568,7]
[322353788,1712958674718,-152.86380632,0.0004958,43]
[322353789,1712958674739,-206.80791795,0.00049588,2]
[322353790,1712958674749,-5832.36659362,0.00049588,2]
[322353791,1712958674760,-500.0,0.00049589,120]
[322353792,1712958674770,-151.0,0.00049589,120]
[322353793,1712958674781,-663.41,0.00049589,120]
[322353794,1712958674792,-151.0,0.00049589,120]
[322353795,1712958674811,-500.0,0.00049589,120]
[322353796,1712958674836,-500.0,0.00049589,120]
[322353797,1712958674858,-282.770874,0.00049589,120]
[322353798,1712958674879,-282.770874,0.00049589,120]
[322353799,1712958674890,-294.95916,0.00049589,7]
[322353800,1712958674902,-355.91066,0.00049589,30]
[322353801,1712958674912,-191.37,0.00049589,120]
[322353802,1712958674921,-355.91066,0.00049589,30]
[322353803,1712958674931,-151.0,0.00049589,120]
[322353804,1712958674941,-151.0,0.00049589,120]
[322353805,1712958674951,-315.88395246,0.00049589,120]
[322353806,1712958674964,-241.71,0.00049589,120]
[322353807,1712958674979,-538.33,0.00049589,120]
[322353808,1712958674991,-500.0,0.00049589,120]
[322353809,1712958675002,-3000.0,0.00049589,120]
[322353810,1712958675012,-538.15,0.00049589,120]
[322353811,1712958675025,-500.0,0.00049589,120]
[322353812,1712958675037,-500.0,0.00049589,120]
[322353813,1712958675052,-576.55,0.00049589,120]
[322353814,1712958675063,-500.0,0.00049589,120]
[322353815,1712958675074,-933.0,0.00049589,120]
[322353816,1712958675086,-2019.61,0.00049589,120]
[322353817,1712958675098,-690.76,0.00049589,120]
[322353818,1712958675108,-500.0,0.00049589,120]
[322353819,1712958675119,-500.0,0.00049589,120]
[322353820,1712958675130,-564.75,0.00049589,120]
[322353821,1712958675142,-500.0,0.00049589,120]
[322353822,1712958675153,-539.86,0.00049589,120]
[322353823,1712958675164,-661.77,0.00049589,120]
[322353824,1712958675174,-500.0,0.00049589,120]
[322353825,1712958675185,-950.68,0.00049589,120]
[322353826,1712958675197,-2117.29,0.00049589,120]
[322353827,1712958675208,-500.0,0.00049589,120]
[322353828,1712958675219,-1018.48,0.00049589,120]
[322353829,1712958675230,-500.0,0.00049589,2]
[322353830,1712958675240,-500.0,0.00049589,120]
[322353831,1712958675250,-679.68,0.00049589,120]
[322353832,1712958675260,-843.3,0.00049589,120]
[322353833,1712958675270,-4584.66,0.00049589,120]
[322353834,1712958675280,-964.63,0.00049589,120]
[322353835,1712958675291,-500.0,0.00049589,120]
[322353836,1712958675301,-1471.09,0.00049589,120]
[322353837,1712958675312,-567.23,0.00049589,120]
[322353838,1712958675322,-181.48798935,0.00049589,120]
[322353839,1712958675333,-500.0,0.00049589,120]
[322353840,1712958675344,-500.0,0.00049589,120]
[322353841,1712958675354,-500.0,0.00049589,120]
[322353842,1712958675366,-504.77,0.00049589,120]
[322353843,1712958675376,-2161.08,0.00049589,120]
[322353844,1712958675386,-1034.34,0.00049589,21]
[322353845,1712958675396,-500.0,0.00049589,120]
[322353846,1712958675406,-500.0,0.00049589,120]
[322353847,1712958675416,-564.36,0.00049589,120]
[322353848,1712958675427,-500.0,0.00049589,120]
[322353849,1712958675437,-500.0,0.00049589,120]
[322353850,1712958675447,-848.58,0.00049589,120]
[322353851,1712958675456,-500.0,0.00049589,120]
[322353852,1712958675467,-1673.04,0.00049589,120]
[322353853,1712958675476,-2316.35,0.00049589,120]
[322353854,1712958675486,-500.0,0.00049589,120]
[322353855,1712958675496,-500.0,0.00049589,120]
[322353856,1712958675506,-500.0,0.00049589,120]
[322353857,1712958675516,-722.55,0.00049589,120]
[322353858,1712958675526,-754.19,0.00049589,120]
[322353859,1712958675536,-500.0,0.00049589,120]
[322353860,1712958675546,-677.12,0.00049589,120]
[322353861,1712958675556,-1978.67,0.00049589,120]
[322353862,1712958675566,-719.28,0.00049589,120]
[322353863,1712958675576,-560.74,0.00049589,120]
[322353864,1712958675586,-500.0,0.00049589,120]
[322353865,1712958675596,-533.13,0.00049589,120]
[322353866,1712958675607,-533.63,0.00049589,120]
[322353867,1712958675617,-500.0,0.00049589,120]
[322353868,1712958675627,-852.78,0.00049589,120]
[322353869,1712958675638,-650.62,0.00049589,120]
[322353870,1712958675648,-663.97,0.00049589,120]
[322353871,1712958675657,-1170.71,0.00049589,120]
[322353872,1712958675666,-500.0,0.00049589,120]
[322353873,1712958675677,-913.83,0.00049589,120]
[322353874,1712958675687,-760.9,0.00049589,120]
[322353875,1712958675697,-975.42,0.00049589,120]
[322353876,1712958675707,-500.0,0.00049589,120]
[322353877,1712958675717,-1247.05,0.00049589,120]
[322353878,1712958675727,-737.88,0.00049589,120]
[322353879,1712958675737,-621.14,0.00049589,120]
[322353880,1712958675747,-3574.09,0.00049589,120]
[322353881,1712958675758,-746.31,0.00049589,120]
[322353882,1712958675769,-1154.88,0.00049589,120]
[322353883,1712958675779,-1303.28,0.00049589,120]
[322353884,1712958675789,-500.0,0.00049589,120]
[322353885,1712958675799,-510.75,0.00049589,120]
[322353886,1712958675810,-1868.15,0.00049589,120]
[322353887,1712958675820,-500.0,0.00049589,120]
[322353888,1712958675831,-761.6,0.00049589,120]
[322353889,1712958675842,-500.0,0.00049589,120]
[322353890,1712958675852,-757.87,0.00049589,120]
[322353891,1712958675863,-604.93,0.00049589,120]
[322353892,1712958675873,-590.53,0.00049589,120]
[322353893,1712958675883,-500.0,0.00049589,120]
[322353894,1712958675893,-1480.64,0.00049589,120]
[322353895,1712958675904,-504.96,0.00049589,120]
[322353896,1712958675914,-500.0,0.00049589,120]
[322353897,1712958675924,-185.55825352,0.0004966,46]
[322353898,1712958675934,-151.78703878,0.00049676,30]
[322353899,1712958675945,-5350.0,0.0004969,29]
[322353900,1712958675955,-202.26668692,0.00049692,7]
[322353901,1712958675964,-2000.0,0.00049692,7]
[322353902,1712958675975,-200.0,0.00049692,7]
[322353903,1712958675985,-2000.0,0.00049692,7]
[322353904,1712958675995,-200.0,0.00049692,7]
[322353905,1712958676005,-479.0,0.000497,38]
[322353906,1712958676015,-248.719999,0.000497,120]
[322353907,1712958676025,-158.0,0.000497,2]
[322353908,1712958676036,-150.0,0.000497,27]
[322353909,1712958676046,-381.0,0.000497,27]
[322353910,1712958676056,-150.0,0.000497,27]
[322353911,1712958676067,-1000.0,0.000497,23]
[322353912,1712958676080,-154.37853735,0.00049716,75]
[322353913,1712958676093,-3000.0,0.00049726,120]
[322353914,1712958676104,-500.0,0.00049745,90]
[322353915,1712958676115,-500.0,0.00049745,90]
[322353916,1712958676126,-151.0,0.00049763,120]
[322353917,1712958676137,-151.0,0.00049763,14]
[322353918,1712958676147,-151.0,0.00049763,120]
[322353919,1712958676159,-5438.9012011,0.00049763,2]
[322353920,1712958676170,-31843.62051345,0.00049763,2]
[322353921,1712958676231,-64210.29763595,0.00049763,2]
[322353922,1712958676242,-8051.0277891,0.00049763,2]
[322353923,1712958676252,-27328.0017556,0.00049763,2]
[322353924,1712958676263,-977.548943,0.00049763,2]
[322353925,1712958676273,-1113.4305696,0.00049763,2]
[322353926,1712958676284,-2523.8240202,0.00049763,2]
[322353927,1712958676294,-151.0,0.00049763,120]
[322353928,1712958676371,-151.0,0.00049763,120]
[322353929,1712958676381,-282.770874,0.00049766,120]
[322353930,1712958676391,-282.770874,0.00049766,120]
[322353931,1712958676401,-151.0,0.00049766,14]
[322353932,1712958676410,-151.0,0.00049766,120]
[322353933,1712958676420,-151.0,0.00049766,120]
[322353934,1712958676429,-251.613174,0.00049766,120]
[322353935,1712958676439,-151.0,0.00049766,120]
[322353936,1712958676448,-188.985821,0.00049766,120]
[322353937,1712958676458,-188.985821,0.00049766,120]
[322353938,1712958676468,-151.0,0.00049766,120]
[322353939,1712958676478,-4599.8442718,0.00049766,2]
[322353940,1712958676488,-151.0,0.00049766,120]
[322353941,1712958676498,-151.0,0.00049766,120]
[322353942,1712958676507,-151.0,0.00049766,120]
[322353943,1712958676517,-81235.7218564,0.00049766,2]
[322353944,1712958676527,-168.269111,0.00049766,120]
[322353945,1712958676536,-168.269111,0.00049766,120]
[322353946,1712958676546,-6808.9992239,0.00049766,2]
[322353947,1712958676555,-493.497385,0.00049766,120]
[322353948,1712958676565,-493.497385,0.00049766,120]
[322353949,1712958676575,-151.0,0.00049766,120]
[322353950,1712958676585,-151.0,0.00049766,120]
[322353951,1712958676600,-212.602494,0.00049766,120]
[322353952,1712958676611,-151.0,0.00049766,120]
[322353953,1712958676620,-23112.1227773,0.00049766,2]
[322353954,1712958676629,-826.7428915,0.00049766,2]
[322353955,1712958676639,-657.185597,0.00049766,120]
[322353956,1712958676649,-657.185597,0.00049766,120]
[322353957,1712958676658,-1543.137664,0.00049766,120]
[322353958,1712958676668,-151.0,0.00049766,120]
[322353959,1712958676678,-1543.137664,0.00049766,120]
[322353960,1712958676688,-151.0,0.00049766,120]
[322353961,1712958676698,-649.268373,0.00049766,120]
[322353962,1712958676708,-649.268373,0.00049766,120]
[322353963,1712958676717,-215.428086,0.00049766,30]
[322353964,1712958676727,-215.428086,0.00049766,30]
[322353965,1712958676738,-942.6743412,0.00049766,2]
[322353966,1712958676748,-151.0,0.00049766,120]
[322353967,1712958676757,-151.0,0.00049766,120]
[322353968,1712958676766,-2136.7691982,0.00049766,2]
[322353969,1712958676775,-176.54168,0.00049766,7]
[322353970,1712958676784,-96303.46066585,0.0004977,15]
[322353971,1712958676793,-3880.50089951,0.0004977,120]
[322353972,1712958676803,-300.0,0.0004977,3]
[322353973,1712958676812,-600.0,0.0004977,3]
[322353974,1712958676821,-300.0,0.0004977,3]
[322353975,1712958676831,-151.0,0.0004977,120]
[322353976,1712958676840,-34000.0,0.0004977,120]
[322353977,1712958676850,-151.0,0.0004977,120]
[322353978,1712958676859,-355.91066,0.0004977,30]
[322353979,1712958676869,-355.91066,0.0004977,30]
[322353980,1712958676878,-151.0,0.0004977,120]
[322353981,1712958676888,-151.0,0.0004977,120]
[322353982,1712958676899,-2133.36,0.0004977,15]
[322353983,1712958676909,-11215.98958404,0.00049797,2]
[322353984,1712958676920,-1000.0,0.00049799,120]
[322353985,1712958676930,-4732.54280864,0.00049799,7]
[322353986,1712958676940,-718500.24180125,0.000498,30]
[322353987,1712958676960,-250.0,0.00045904,2]
[322353988,1712958676971,-29591.3648008,0.000498,30]
[322353989,1712958676984,-202522.22987124,0.000498,30]
[322353990,1712958677236,-162.36,0.00043282,2]
[322353991,1712958677246,-418.16,0.00043282,2]
[322353992,1712958677256,-300.0,0.00043282,2]
[322353993,1712958677266,-180.9,0.00045904,2]
[322353994,1712958677276,-156.54950995,0.00046574,4]
[322353995,1712958677286,-194.72613442,0.00046575,31]
[322353996,1712958677296,-334.68781279,0.00046575,31]
[322353997,1712958677306,-500.0,0.00046575,31]
[322353998,1712958677316,-150.0,0.000466,2]
[322353999,1712958677325,-1093.79,0.000466,2]
[322354000,1712958677335,-301.88,0.000466,2]
[322354001,1712958677345,-150.0,0.000466,2]
[322354002,1712958677354,-150.0,0.000466,2]
[322354003,1712958677365,-25473.81804287,0.000498,30]
[322354004,1712958677381,-150.0,0.000466,2]
[322354005,1712958677390,-834.29293259,0.000498,30]
[322354006,1712958677402,-83051.59512805,0.000498,30]
[322354007,1712958677413,-669.58373491,0.000498,30]
[322354008,1712958677425,-357.91,0.000498,30]
[322354009,1712958677438,-1906.81788678,0.000498,30]
[322354010,1712958677454,-500.0,0.00046849,31]
[322354011,1712958677464,-15174.15098924,0.000498,30]
[322354012,1712958677480,-150.0,0.000466,2]
[322354013,1712958677489,-152401.30236116,0.000498,30]
[322354014,1712958677501,-290.95258318,0.000498,30]
[322354015,1712958678024,1038.04438346,0.00025575,2]
[322354016,1712958679367,9995448.73561654,0.00021,2]
[322354017,1712958679395,2093528.85318593,0.00021,2]
[322354018,1712958679419,2500000.0,0.00021,2]
[322354019,1712958679444,2500000.0,0.00021,2]
[322354020,1712959031009,328.65,0.00018631,2]
[322354021,1712959143207,260.36,0.0002099,15]
[322354022,1712959221876,7004.59381952,0.00022332,30]
[322354023,1712959263016,260.36,0.0002099,15]
[322354026,1712959524460,-1745.12275571,0.00019902,2]
[322354027,1712959524488,-1254.87724429,0.00019905,2]
[322354028,1712959535400,558.0,0.0003,30]
[322354029,1712959537053,1745.12275571,0.00015734,2]
[322354031,1712959555051,1745.12275571,0.00015734,2]
[322354033,1712959573051,1745.12275571,0.00015734,2]
[322354035,1712959591051,1274.38622145,0.00015733,2]
[322354040,1712959757338,-537.0912553,0.00019892,2]
[322354041,1712959757361,-3770.46184272,0.00019892,2]
[322354042,1712959757382,-250.0,0.00019893,2]
[322354043,1712959757404,-491.46,0.000199,2]
[322354044,1712959757427,-180.9,0.00019901,2]
[322354045,1712959757452,-150.0,0.00019905,2]
[322354046,1712959757474,-23900.0,0.00019906,2]
[322354047,1712959757494,-1386.44,0.00020065,2]
[322354048,1712959757515,-151.4,0.00020082,2]
[322354049,1712959757536,-200.0,0.00020107,2]
[322354050,1712959757559,-151.4,0.00020344,2]
[322354051,1712959757580,-151.4,0.00020605,2]
[322354052,1712959757601,-151.4,0.00020867,2]
[322354053,1712959757621,-166.00416305,0.00020879,2]
[322354054,1712959757644,-152.88340361,0.00020879,2]
[322354055,1712959757666,-325.41180443,0.00020879,2]
[322354056,1712959757690,-906.2065175,0.00020879,2]
[322354057,1712959757712,-2194.4154,0.0002088,2]
[322354058,1712959757734,-7500.0,0.0002088,2]
[322354059,1712959757762,-14138.7274,0.0002088,2]
[322354060,1712959757785,-906.20651749,0.00020881,2]
[322354061,1712959757808,-906.20651749,0.00020884,2]
[322354062,1712959757830,-166.00416305,0.00020884,2]
[322354063,1712959757853,-152.88340361,0.00020884,2]
[322354064,1712959757875,-180.76225175,0.00020886,2]
[322354065,1712959762592,-725.44426574,0.00020886,2]
[322354066,1712959762616,-906.20651749,0.00020888,2]
[322354067,1712959762640,-166.00416305,0.0002089,2]
[322354068,1712959762670,-152.88340361,0.0002089,2]
[322354069,1712959762693,-325.41180443,0.0002089,2]
[322354070,1712959762715,-2593.40525641,0.0002089,2]
[322354071,1712959762738,-219.37866606,0.0002089,2]
[322354072,1712959762762,-175.29854916,0.0002089,2]
[322354073,1712959762784,-906.20651749,0.00020891,2]
[322354074,1712959762807,-2593.40525637,0.00020891,2]
[322354075,1712959762831,-2593.40525637,0.00020892,2]
[322354076,1712959762854,-2593.40525637,0.00020893,2]
[322354077,1712959762876,-1016.80431323,0.00020893,2]
[322354078,1712959762899,-906.20651749,0.00020893,2]
[322354079,1712959762920,-2593.40525637,0.00020894,2]
[322354080,1712959762942,-2593.40525637,0.00020895,2]
[322354081,1712959762965,-166.00416305,0.00020895,2]
[322354082,1712959762990,-152.88340361,0.00020895,2]
[322354083,1712959763017,-2593.40525637,0.00020895,2]
[322354084,1712959763038,-2593.40525637,0.00020896,2]
[322354085,1712959763060,-2593.40525637,0.00020897,2]
[322354086,1712959763083,-2593.40525637,0.00020898,2]
[322354087,1712959763105,-2545.28,0.00020899,2]
[322354088,1712959763127,-173.72120902,0.00020899,2]
[322354089,1712959763149,-2593.40525637,0.00020899,2]
[322354090,1712959763171,-499.99,0.00020899,2]
[322354091,1712959763192,-914.22,0.00020899,2]
[322354092,1712959763216,-18262.2535,0.000209,2]
[322354093,1712959763238,-934.7524,0.000209,2]
[322354094,1712959763263,-2593.40525637,0.000209,2]
[322354095,1712959763286,-152.36796258,0.000209,2]
[322354096,1712959763308,-166.00416305,0.000209,2]
[322354097,1712959763331,-152.88340361,0.000209,2]
[322354098,1712959763354,-1916.93073046,0.000209,2]
[322354099,1712959763381,-325.41180443,0.000209,2]
[322354100,1712959763407,-1771.34424374,0.000209,3]
[322354101,1712959763431,-183.7301656,0.000209,3]
[322354102,1712959763455,-1959.87513253,0.000209,2]